bitfinex/quotes_SOLUSD_20250830
["timestamp","ask_amount","ask_price","bid_price","bid_amount"]
[1756584303354,0.06,201.18,201.17,0.66000001]
[1756584306026,0.06,201.18,201.17,3.65177227]
[1756584306231,0.06,201.18,201.17,8.62269238]
[1756584307042,0.06,201.18,201.17,25.21005839]
[1756584308919,0.06,201.18,201.17,63.39005839]
[1756584309121,0.06,201.21,201.2,39.59559401]
[1756584309322,0.06,201.21,201.2,54.55445531]
[1756584309526,0.06,201.21,201.2,93.40445531]
[1756584310129,0.06,201.21,201.2,14.24559401]
[1756584310333,0.06,201.21,201.2,0.65]
[1756584314145,0.06,201.21,201.2,5.32722798]
[1756584314524,0.06,201.21,201.2,10.2974069]
[1756584315955,0.06,201.21,201.2,5.32722798]
[1756584316150,0.06,201.21,201.2,43.56722798]
[1756584316448,0.06,201.21,201.2,48.24445598]
[1756584317228,0.06,201.21,201.2,10.00445598]
[1756584320738,0.06,201.21,201.2,53.1746349]
[1756584321746,0.06,201.21,201.2,71.44745689]
[1756584322652,0.06,201.21,201.2,5.32722798]
[1756584322856,0.06,201.21,201.2,0.65]
[1756584323065,0.06,201.21,201.19,38.91]
[1756584323441,0.06,201.21,201.2,0.65]
[1756584323845,0.06,201.21,201.19,38.26]
[1756584324237,0.06,201.21,201.19,38.91]
[1756584324433,0.06,201.21,201.2,0.65]
[1756584330164,0.06,201.21,201.19,42.93722798]
[1756584330348,0.06,201.21,201.19,43.58722798]
[1756584331666,0.06,201.21,201.19,38.91]
[1756584331968,0.06,201.21,201.19,38.26]
[1756584332461,0.06,201.21,201.18,0.03]
[1756584332663,0.72,201.21,201.19,38.22]
[1756584333966,0.06,201.21,201.19,38.22]
[1756584335166,0.06,201.21,201.19,38.88]
[1756584336658,0.06,201.21,201.2,0.66]
[1756584336860,0.06,201.21,201.18,7.99319228]
[1756584337059,0.06,201.21,201.19,38.22]
[1756584337660,0.06,201.21,201.19,38.88]
[1756584339668,0.06,201.21,201.19,38.22]
[1756584339867,0.06,201.21,201.2,0.66]
[1756584340972,0.06,201.21,201.2,3.65334228]
[1756584341166,0.06,201.23,201.21,13.59559401]
[1756584341364,0.06,201.23,201.22,54.80893629]
[1756584341876,0.06,201.23,201.22,46.02111628]
[1756584343271,0.06,201.23,201.22,47.70184292]
[1756584344057,0.06,201.23,201.22,52.67152784]
[1756584344474,0.06,201.23,201.22,66.26712185]
[1756584349181,0.06,201.23,201.22,66.76409034]
[1756584349758,0.06,201.23,201.22,28.04712185]
[1756584349982,0.06,201.23,201.22,66.24712185]
[1756584350783,0.06,201.23,201.22,66.26712185]
[1756584351680,0.06,201.23,201.22,47.02184292]
[1756584352466,0.06,201.23,201.22,47.97745892]
[1756584352673,0.06,201.23,201.22,47.68184292]
[1756584353889,0.06,201.23,201.22,43.007774]
[1756584354062,0.06,201.23,201.22,47.68184292]
[1756584354265,0.06,201.23,201.22,52.65152784]
[1756584356491,0.06,201.23,201.22,47.68184292]
[1756584359290,0.06,201.23,201.22,43.53406892]
[1756584359790,0.06,201.23,201.22,43.51406892]
[1756584361800,0.06,201.23,201.22,62.07934785]
[1756584362299,0.06,201.23,201.22,64.56810034]
[1756584362484,0.06,201.23,201.22,59.89403142]
[1756584362685,0.06,201.23,201.22,64.56810034]
[1756584362885,0.06,201.23,201.22,64.58810034]
[1756584363419,0.06,201.23,201.22,62.90428616]
[1756584365304,0.06,201.23,201.22,64.58603384]
[1756584367607,0.06,201.23,201.22,64.56603384]
[1756584368381,0.06,201.24,201.23,13.59559401]
[1756584368707,0.06,201.24,201.23,18.95759643]
[1756584369401,0.06,201.24,201.23,20.94918143]
[1756584369705,0.06,201.24,201.23,25.91861938]
[1756584371001,0.06,201.24,201.23,64.09861938]
[1756584375906,0.06,201.24,201.23,25.91861938]
[1756584376105,0.73,201.24,201.21,0.03]
[1756584376282,0.06,201.24,201.23,4.67200242]
[1756584376601,0.06,201.24,201.23,42.83200242]
[1756584376901,0.73,201.24,201.23,4.67200242]
[1756584377081,0.73,201.24,201.23,42.83200242]
[1756584377612,0.73,201.24,201.21,18.59550152]
[1756584377613,0.73,201.24,201.21,0.03]
[1756584377801,0.73,201.24,201.22,38.16]
[1756584377985,0.67,201.23,201.22,38.16]
[1756584379503,0.67,201.23,201.21,0.03]
[1756584379687,0.67,201.23,201.22,38.2]
[1756584380802,0.67,201.23,201.22,38.23]
[1756584382500,0.06,201.24,201.22,42.90200242]
[1756584382703,0.06,201.24,201.23,4.67200242]
[1756584383084,0.73,201.24,201.23,4.67200242]
[1756584383895,0.73,201.24,201.22,38.23]
[1756584384103,0.06,201.24,201.22,38.23]
[1756584384394,0.67,201.23,201.22,0.03]
[1756584384697,0.67,201.23,201.22,38.21]
[1756584386415,0.06,201.24,201.22,42.88200242]
[1756584386597,0.06,201.24,201.23,5.36200242]
[1756584390419,0.06,201.24,201.23,4.67200242]
[1756584392316,0.06,201.24,201.22,38.21]
[1756584392725,0.06,201.24,201.22,42.88200242]
[1756584392902,0.06,201.24,201.22,38.21]
[1756584393211,0.72,201.24,201.22,38.21]
[1756584393432,0.06,201.24,201.22,42.88200242]
[1756584395012,0.06,201.24,201.23,4.67200242]
[1756584396819,0.06,201.24,201.23,9.64144037]
[1756584397027,0.06,201.24,201.23,10.31144037]
[1756584399217,0.06,201.24,201.23,10.34144037]
[1756584401824,0.06,201.24,201.23,5.37200242]
[1756584402021,0.06,201.24,201.23,4.70200242]
[1756584402620,0.06,201.24,201.23,0.03]
[1756584403620,0.06,201.24,201.23,4.70200242]
[1756584407311,0.06,201.24,201.23,5.37200242]
[1756584408532,0.06,201.24,201.23,0.7]
[1756584417638,3.71227985,201.24,201.23,38.17]
[1756584418055,29.71227985,201.24,201.23,0.03]
[1756584418338,33.8600534,201.24,201.23,0.03]
[1756584419831,38.82924441,201.24,201.23,0.03]
[1756584420025,33.8600534,201.24,201.23,0.03]
[1756584420228,29.05227985,201.24,201.23,0.03]
[1756584420527,34.68147086,201.24,201.23,0.03]
[1756584421331,38.82924441,201.24,201.23,0.03]
[1756584424625,34.68147086,201.24,201.23,0.03]
[1756584427442,36.36772778,201.24,201.23,0.03]
[1756584428237,0.06,201.24,201.23,0.03]
[1756584428549,0.06,201.24,201.23,0.7]
[1756584428550,4.73853677,201.24,201.23,0.7]
[1756584429349,0.06,201.24,201.23,0.7]
[1756584433562,0.06,201.24,201.23,5.66943795]
[1756584434551,0.06,201.24,201.23,10.34797472]
[1756584435263,0.06,201.24,201.23,0.7]
[1756584435436,0.06,201.24,201.23,5.66943795]
[1756584435635,0.06,201.24,201.23,10.34797472]
[1756584436643,0.06,201.24,201.23,7.66151895]
[1756584436965,0.06,201.24,201.23,10.34797472]
[1756584438773,0.06,201.24,201.23,23.94356873]
[1756584439069,0.06,201.24,201.23,21.25691496]
[1756584439367,0.06,201.24,201.23,25.93545173]
[1756584445548,0.06,201.26,201.25,13.59559401]
[1756584445853,0.06,201.26,201.25,82.91102518]
[1756584446059,0.06,201.26,201.25,83.58102518]
[1756584446273,0.06,201.26,201.25,85.57251218]
[1756584447557,0.06,201.26,201.25,90.54145627]
[1756584447779,0.06,201.26,201.25,1.991487]
[1756584448069,0.06,201.26,201.25,38.16]
[1756584452072,0.75,201.26,201.24,1.991982]
[1756584452281,5.36853677,201.25,201.23,0.03]
[1756584452654,5.36853677,201.24,201.23,38.23]
[1756584453584,5.36853677,201.24,201.23,0.03]
[1756584455378,10.33772778,201.24,201.23,0.03]
[1756584460169,0.06,201.26,201.24,13.59559401]
[1756584460363,0.06,201.26,201.25,57.65102518]
[1756584461459,0.06,201.26,201.25,64.61175327]
[1756584462476,0.06,201.26,201.25,59.9332165]
[1756584462683,0.06,201.26,201.25,64.61175327]
[1756584466485,0.06,201.26,201.25,21.7332165]
[1756584466786,0.06,201.26,201.25,64.77175327]
[1756584472485,0.06,201.26,201.25,21.7332165]
[1756584472693,0.06,201.26,201.25,64.77175327]
[1756584477711,5.42853677,201.26,201.25,1.991784]
[1756584477992,5.42853677,201.26,201.24,0.03]
[1756584478192,4.67853677,201.25,201.24,0.03]
[1756584478572,5.36853677,201.25,201.24,0.03]
[1756584480900,0.69,201.25,201.22,37.93]
[1756584481102,5.36853677,201.25,201.24,38.42]
[1756584482298,0.06,201.26,201.24,38.42]
[1756584482599,4.73853677,201.26,201.24,38.42]
[1756584482804,5.40853677,201.26,201.24,38.42]
[1756584482976,5.40853677,201.26,201.25,38.42]
[1756584485210,4.73853677,201.26,201.25,38.42]
[1756584487806,0.06,201.26,201.25,38.42]
[1756584488012,4.73853677,201.26,201.25,38.42]
[1756584489806,4.73853677,201.26,201.24,0.03]
[1756584490103,4.67853677,201.25,201.24,0.03]
[1756584490300,4.67853677,201.25,201.24,38.41]
[1756584492111,5.34853677,201.25,201.24,0.03]
[1756584492294,5.34853677,201.25,201.24,38.43]
[1756584492499,5.34853677,201.25,201.24,0.03]
[1756584493613,4.67853677,201.25,201.24,0.03]
[1756584499611,0.06,201.26,201.24,0.03]
[1756584499919,4.67853677,201.25,201.24,0.03]
[1756584500304,4.73853677,201.25,201.24,0.03]
[1756584507718,10.37748086,201.25,201.24,0.03]
[1756584508305,36.37748086,201.25,201.24,0.03]
[1756584508505,26.0,201.23,201.22,0.03]
[1756584508713,35.64797472,201.23,201.22,0.03]
[1756584508918,31.34853677,201.23,201.22,0.03]
[1756584509130,4.67853677,201.23,201.22,0.03]
[1756584509436,5.34853677,201.23,201.22,0.03]
[1756584510134,4.67853677,201.23,201.22,0.03]
[1756584512229,10.30797472,201.23,201.22,0.03]
[1756584512609,5.62943795,201.23,201.22,0.03]
[1756584512822,10.30797472,201.23,201.22,0.03]
[1756584514217,10.30797472,201.23,201.21,0.03]
[1756584514218,18.96496164,201.23,201.21,0.03]
[1756584514524,35.35707354,201.22,201.21,0.03]
[1756584515035,36.01707354,201.22,201.21,0.03]
[1756584516318,40.98675846,201.22,201.21,0.03]
[1756584516721,14.98675846,201.22,201.21,0.03]
[1756584517545,26.0,201.2,201.19,0.03]
[1756584517714,30.67853677,201.19,201.18,0.03]
[1756584517922,31.33853677,201.19,201.18,0.03]
[1756584518322,36.30896273,201.19,201.18,0.03]
[1756584518622,35.64896273,201.19,201.18,0.03]
[1756584518811,36.30896273,201.19,201.18,0.03]
[1756584521042,36.30896273,201.19,201.16,0.03]
[1756584521225,68.99853677,201.18,201.16,0.03]
[1756584521429,73.96920979,201.18,201.16,0.03]
[1756584521633,74.62920979,201.18,201.16,0.03]
[1756584522232,4.67853677,201.17,201.16,0.03]
[1756584522626,26.0,201.14,201.03,40.51853677]
[1756584522928,65.0,201.14,201.09,0.72]
[1756584524048,4.67853677,201.1,201.03,45.49285272]
[1756584524255,5.63190871,201.13,201.08,0.72]
[1756584524425,5.63190871,201.13,201.09,0.72]
[1756584525442,4.67853677,201.1,201.09,0.72]
[1756584526545,9.65118719,201.1,201.06,0.72]
[1756584526746,4.67853677,201.07,201.06,0.72]
[1756584527043,4.67853677,201.07,201.03,35.84]
[1756584527440,4.67853677,201.07,201.04,0.72]
[1756584527652,4.67853677,201.06,201.04,0.72]
[1756584528025,4.67853677,201.06,201.02,13.59559401]
[1756584528026,4.67853677,201.05,201.02,13.59559401]
[1756584528225,4.67853677,201.03,200.99,13.59559401]
[1756584528424,4.67853677,201.03,201.01,13.59559401]
[1756584528948,4.67853677,201.03,201.02,0.72]
[1756584529123,4.67853677,201.04,201.02,0.72]
[1756584532455,4.67853677,201.05,201.02,0.72]
[1756584533045,4.67853677,201.03,201.02,0.72]
[1756584534660,4.67853677,201.04,201.02,0.72]
[1756584535037,4.67853677,201.04,201.03,0.72]
[1756584539766,4.67853677,201.04,201.03,5.695047]
[1756584540770,4.67853677,201.04,201.03,4.975047]
[1756584540975,4.67853677,201.04,201.02,0.03]
[1756584541144,4.67853677,201.03,201.02,5.005047]
[1756584541464,4.67853677,201.03,201.02,5.685047]
[1756584542062,4.67853677,201.03,201.02,5.005047]
[1756584543250,5.34853677,201.03,201.02,5.005047]
[1756584544248,4.67853677,201.03,201.02,5.005047]
[1756584544437,4.67853677,201.03,201.02,0.03]
[1756584545062,5.34853677,201.03,201.02,0.03]
[1756584545240,4.67853677,201.03,201.02,0.03]
[1756584550273,10.3229187,201.03,201.02,0.03]
[1756584550764,9.6529187,201.03,201.02,0.03]
[1756584551666,10.3229187,201.03,201.02,0.03]
[1756584552875,4.67853677,201.03,201.02,0.71]
[1756584553060,4.67853677,201.03,201.02,6.364191]
[1756584554555,10.3229187,201.03,201.02,0.03]
[1756584555175,14.36948498,201.03,201.02,0.03]
[1756584555876,16.0471097,201.03,201.02,0.03]
[1756584556252,16.7171097,201.03,201.02,0.03]
[1756584556664,12.03857293,201.03,201.02,0.03]
[1756584556864,12.03857293,201.03,201.02,0.71]
[1756584556865,4.67853677,201.03,201.02,0.71]
[1756584557580,2.024664,201.08,201.02,0.71]
[1756584557872,4.67853677,201.04,201.02,0.71]
[1756584558081,4.67853677,201.04,201.02,2.734664]
[1756584558263,4.67853677,201.04,201.03,0.68]
[1756584561470,26.0,201.07,201.03,0.68]
[1756584561670,4.67853677,201.04,201.02,2.054664]
[1756584561859,4.67853677,201.05,201.02,2.054664]
[1756584562181,4.67853677,201.04,201.02,2.054664]
[1756584562379,4.67853677,201.04,201.02,2.734664]
[1756584562683,30.97343228,201.07,201.02,2.054664]
[1756584562883,4.67853677,201.06,201.03,0.68]
[1756584563082,4.67853677,201.06,201.03,5.654843]
[1756584563378,4.67853677,201.06,201.04,0.68]
[1756584563683,4.67853677,201.06,201.05,0.68]
[1756584564878,4.67853677,201.06,201.03,4.974843]
[1756584565184,4.67853677,201.06,201.04,0.68]
[1756584565553,4.67853677,201.06,201.03,4.974843]
[1756584565759,4.67853677,201.06,201.04,0.68]
[1756584566282,4.67853677,201.06,201.03,4.974843]
[1756584566584,4.67853677,201.06,201.05,0.68]
[1756584566982,4.16572665,201.1,201.05,0.68]
[1756584567167,4.67853677,201.1,201.05,10.33239948]
[1756584567369,4.16572665,201.13,201.06,5.35853677]
[1756584567575,4.67853677,201.1,201.07,0.68]
[1756584567878,4.67853677,201.09,201.08,9.807679]
[1756584568381,4.67853677,201.11,201.08,9.807679]
[1756584568682,4.67853677,201.11,201.08,10.487679]
[1756584569673,8.84426342,201.12,201.09,0.68]
[1756584570657,8.84426342,201.12,201.08,9.807679]
[1756584570658,8.84426342,201.12,201.1,0.68]
[1756584571062,26.0,201.11,201.1,0.68]
[1756584571982,4.67853677,201.12,201.1,0.68]
[1756584572157,8.90426342,201.15,201.1,4.67853677]
[1756584572358,26.0,201.14,201.11,5.631706]
[1756584572763,26.0,201.13,201.11,0.66]
[1756584572963,26.0,201.13,201.11,14.255594]
[1756584575303,4.67853677,201.14,201.11,14.255594]
[1756584576697,26.06,201.15,201.12,0.66]
[1756584576880,30.73853677,201.15,201.12,0.66]
[1756584577490,30.73853677,201.15,201.12,14.255594]
[1756584580176,30.73853677,201.15,201.12,0.66]
[1756584580375,30.73853677,201.15,201.11,14.255594]
[1756584580376,4.67853677,201.13,201.11,14.255594]
[1756584580572,31.03143825,201.15,201.11,14.255594]
[1756584580573,31.36853677,201.12,201.11,14.255594]
[1756584581188,26.0,201.09,201.03,0.66]
[1756584581403,26.0,201.09,201.02,0.03]
[1756584581404,4.67853677,201.04,201.02,0.03]
[1756584581586,4.67853677,201.03,201.02,14.285594]
[1756584581778,4.67853677,201.03,201.02,0.03]
[1756584582304,10.3429187,201.03,201.02,0.03]
[1756584582507,4.67853677,201.03,201.02,0.03]
[1756584583271,5.36853677,201.03,201.02,0.03]
[1756584583777,30.67853677,201.03,201.02,0.03]
[1756584584495,35.6529187,201.03,201.02,0.03]
[1756584584710,36.3429187,201.03,201.02,0.03]
[1756584589986,10.3429187,201.03,201.02,0.03]
[1756584591005,12.3378817,201.03,201.02,0.03]
[1756584591882,6.96934493,201.03,201.02,0.03]
[1756584592201,10.3429187,201.03,201.02,0.03]
[1756584593584,9.6529187,201.03,201.02,0.03]
[1756584594414,10.3429187,201.03,201.02,0.03]
[1756584595012,9.6529187,201.03,201.02,0.03]
[1756584602813,10.3129187,201.03,201.02,0.03]
[1756584604313,9.6529187,201.03,201.02,0.03]
[1756584604904,30.67853677,201.03,201.02,0.7]
[1756584605320,35.6529187,201.03,201.02,0.03]
[1756584607718,35.6529187,201.03,201.02,0.7]
[1756584608929,26.0,201.03,201.02,0.7]
[1756584609228,4.97339235,201.07,201.02,0.7]
[1756584609394,4.67853677,201.04,201.02,0.7]
[1756584609902,30.67853677,201.04,201.02,0.7]
[1756584610425,4.67853677,201.04,201.02,0.7]
[1756584610723,4.67853677,201.03,201.02,0.7]
[1756584614215,4.67853677,201.04,201.02,0.7]
[1756584615125,4.97374815,201.06,201.02,0.7]
[1756584615126,4.67853677,201.06,201.02,0.7]
[1756584616408,43.10456612,201.11,201.02,5.67451314]
[1756584616409,4.67853677,201.07,201.02,5.67451314]
[1756584616618,4.67853677,201.07,201.03,0.67]
[1756584618044,4.67853677,201.05,201.03,0.67]
[1756584618249,4.67853677,201.04,201.02,0.03]
[1756584618467,4.67853677,201.03,201.02,0.03]
[1756584620579,9.6529187,201.03,201.02,0.03]
[1756584625068,10.3129187,201.03,201.02,0.03]
[1756584629344,15.88036438,201.03,201.02,0.03]
[1756584630167,10.3129187,201.03,201.02,0.03]
[1756584631266,54.14036438,201.03,201.02,0.03]
[1756584631470,26.0,201.0,200.99,0.03]
[1756584631852,30.67853677,201.0,200.99,0.03]
[1756584632260,84.86910277,201.0,200.99,1e-08]
[1756584632466,90.43654845,201.0,200.99,1e-08]
[1756584634381,84.86910277,201.0,200.99,1e-08]
[1756584634764,97.30691371,201.0,200.91,0.72]
[1756584635075,4.67853677,200.92,200.91,0.72]
[1756584636276,9.65564208,200.92,200.91,0.72]
[1756584637673,9.65564208,200.92,200.89,0.72]
[1756584637878,4.67853677,200.9,200.88,0.1]
[1756584638161,4.97710531,200.92,200.89,0.72]
[1756584638963,4.97710531,200.92,200.88,0.1]
[1756584638964,26.0,200.89,200.88,0.1]
[1756584639193,30.67853677,200.89,200.88,0.82]
[1756584639485,30.67853677,200.89,200.88,0.1]
[1756584639975,31.36853677,200.89,200.88,0.1]
[1756584640574,36.34638534,200.89,200.88,0.1]
[1756584641384,74.64638534,200.89,200.88,0.1]
[1756584642390,73.95638534,200.89,200.88,0.1]
[1756584643599,69.96784857,200.89,200.88,0.1]
[1756584643791,74.64638534,200.89,200.88,0.1]
[1756584644674,74.66638534,200.89,200.88,0.1]
[1756584644876,43.96784857,200.89,200.88,0.1]
[1756584645077,48.64638534,200.89,200.88,0.1]
[1756584648980,10.34638534,200.89,200.88,0.1]
[1756584649301,4.97685761,200.93,200.88,0.82]
[1756584649492,4.67853677,200.91,200.88,0.82]
[1756584649808,26.0,200.9,200.88,0.82]
[1756584650310,26.0,200.89,200.88,0.82]
[1756584653895,4.67853677,200.92,200.88,0.82]
[1756584654579,26.0,200.91,200.88,0.82]
[1756584655198,26.0,200.91,200.88,5.49853677]
[1756584655401,26.0,200.91,200.89,0.72]
[1756584656408,26.0,200.91,200.88,4.77853677]
[1756584656409,26.0,200.91,200.9,0.72]
[1756584660217,30.67853677,200.92,200.9,0.72]
[1756584660396,4.17833615,201.01,200.91,4.67853677]
[1756584660713,4.67853677,200.97,200.92,5.39853677]
[1756584660906,4.67853677,200.97,200.93,0.72]
[1756584661103,4.67853677,200.97,200.91,9.75655077]
[1756584661296,4.67853677,200.95,200.89,4.97782436]
[1756584661500,0.68,200.96,200.89,4.97782436]
[1756584661501,4.67853677,200.92,200.89,10.456551]
[1756584661729,4.67853677,200.91,200.89,10.456551]
[1756584662022,4.67853677,200.9,200.89,0.7]
[1756584662202,4.67853677,200.91,200.89,0.7]
[1756584663122,4.67853677,200.9,200.88,0.1]
[1756584663293,4.67853677,200.9,200.89,0.7]
[1756584664327,4.67853677,200.92,200.89,0.7]
[1756584664524,30.67853677,200.92,200.89,0.7]
[1756584664826,26.0,200.92,200.89,0.7]
[1756584667433,30.67853677,200.92,200.9,0.7]
[1756584667716,30.67853677,200.92,200.88,0.8]
[1756584667717,4.67853677,200.91,200.88,0.8]
[1756584667896,4.67853677,200.9,200.88,0.8]
[1756584668292,26.68,200.92,200.88,0.8]
[1756584668293,4.67853677,200.95,200.89,18.27413078]
[1756584668492,4.67853677,200.95,200.9,0.7]
[1756584668707,4.67853677,200.96,200.91,4.67853677]
[1756584669011,30.67853677,200.96,200.92,0.7]
[1756584669192,30.67853677,200.96,200.93,0.7]
[1756584669541,26.0,200.95,200.93,0.7]
[1756584672013,26.0,200.95,200.94,0.7]
[1756584672390,26.0,200.95,200.91,9.65580811]
[1756584672391,26.0,200.95,200.92,0.7]
[1756584672822,26.0,200.95,200.93,0.7]
[1756584677806,26.0,200.95,200.92,0.7]
[1756584678205,26.0,200.95,200.93,0.7]
[1756584678932,4.73853677,200.97,200.93,0.7]
[1756584679318,5.41853677,200.97,200.93,0.7]
[1756584681216,26.0,200.93,200.9,0.03]
[1756584681418,4.67853677,200.91,200.9,0.03]
[1756584681922,5.35853677,200.91,200.9,0.03]
[1756584683742,10.33588981,200.91,200.9,0.03]
[1756584684119,5.65735304,200.91,200.9,0.03]
[1756584684315,10.33588981,200.91,200.9,0.03]
[1756584685440,5.65735304,200.91,200.9,0.03]
[1756584685644,10.33588981,200.91,200.9,0.03]
[1756584688044,9.65588981,200.91,200.9,0.03]
[1756584689144,10.33588981,200.91,200.9,0.03]
[1756584691063,9.65588981,200.91,200.9,0.03]
[1756584693341,13.8129823,200.91,200.9,0.03]
[1756584693540,9.13444553,200.91,200.9,0.03]
[1756584693730,13.8129823,200.91,200.9,0.03]
[1756584695136,13.83023802,200.91,200.9,0.03]
[1756584695351,14.53023802,200.91,200.9,0.03]
[1756584695663,15.03442658,200.91,200.9,0.03]
[1756584695866,17.03078358,200.91,200.9,0.03]
[1756584697268,26.0,200.89,200.88,0.1]
[1756584697478,68.47310954,200.89,200.88,0.1]
[1756584697753,69.67853677,200.89,200.88,0.1]
[1756584697948,31.37853677,200.89,200.88,0.1]
[1756584698130,69.67853677,200.89,200.88,0.1]
[1756584699146,74.65638534,200.89,200.88,0.1]
[1756584700159,74.65638534,200.89,200.88,1e-08]
[1756584700363,76.65294134,200.89,200.88,1e-08]
[1756584701356,82.22405621,200.89,200.88,1e-08]
[1756584702234,38.54551944,200.89,200.88,1e-08]
[1756584702434,78.12274779,200.89,200.88,0.67000001]
[1756584703353,78.12274779,200.89,200.88,1e-08]
[1756584704167,78.12274779,200.89,200.88,0.67000001]
[1756584704567,78.12274779,200.89,200.88,1e-08]
[1756584707043,78.12274779,200.89,200.88,0.67000001]
[1756584708142,39.82274779,200.89,200.88,0.67000001]
[1756584708965,39.82274779,200.89,200.88,1e-08]
[1756584712152,35.65638534,200.89,200.88,1e-08]
[1756584713346,39.82274779,200.89,200.88,1e-08]
[1756584713962,40.52274779,200.89,200.88,1e-08]
[1756584714357,39.82274779,200.89,200.88,1e-08]
[1756584715970,36.35638534,200.89,200.88,1e-08]
[1756584716366,38.35294134,200.89,200.88,1e-08]
[1756584719478,4.67853677,200.88,200.87,1e-08]
[1756584719672,42.97853677,200.88,200.87,1e-08]
[1756584719850,43.67853677,200.88,200.87,1e-08]
[1756584720286,49.24965164,200.88,200.87,1e-08]
[1756584720478,26.0,200.85,200.83,0.03]
[1756584720681,26.0,200.85,200.7,102.09270529]
[1756584720682,68.97853677,200.84,200.71,13.59559401]
[1756584720893,68.97853677,200.84,200.67,35.9]
[1756584720894,4.67853677,200.75,200.74,1.996854]
[1756584721200,4.67853677,200.75,200.74,0.67]
[1756584723279,4.98122025,200.76,200.74,0.67]
[1756584723488,4.67853677,200.75,200.74,0.17]
[1756584723896,4.67853677,200.75,200.69,14.980152]
[1756584724193,4.67853677,200.75,200.66,13.59559401]
[1756584724194,4.67853677,200.7,200.66,13.59559401]
[1756584724400,26.0,200.71,200.66,14.982395]
[1756584724401,4.67853677,200.68,200.66,14.982395]
[1756584724590,4.67853677,200.68,200.62,18.27413078]
[1756584724773,4.67853677,200.69,200.64,13.59559401]
[1756584724969,26.0,200.7,200.64,18.27413078]
[1756584725295,4.67853677,200.69,200.64,18.27413078]
[1756584725494,4.67853677,200.69,200.65,0.71]
[1756584726487,4.67853677,200.68,200.65,0.71]
[1756584726682,26.0,200.7,200.65,0.71]
[1756584726888,4.67853677,200.69,200.65,5.69378547]
[1756584727096,4.67853677,200.69,200.66,0.71]
[1756584728388,4.67853677,200.68,200.66,0.71]
[1756584730099,4.67853677,200.69,200.66,0.71]
[1756584730696,4.67853677,200.71,200.66,10.37207474]
[1756584730890,4.16270442,200.77,200.68,13.59559401]
[1756584731090,4.16270442,200.77,200.7,4.67853677]
[1756584731091,14.983892,200.77,200.7,4.67853677]
[1756584731296,4.67853677,200.75,200.71,0.71]
[1756584731601,30.67853677,200.75,200.71,0.71]
[1756584732102,0.68,200.81,200.72,13.59559401]
[1756584732302,4.67853677,200.79,200.73,5.38853677]
[1756584732488,4.67853677,200.79,200.74,0.71]
[1756584732807,4.67853677,200.78,200.74,14.305594]
[1756584733011,4.67853677,200.78,200.75,0.71]
[1756584733195,30.67853677,200.78,200.75,0.71]
[1756584733792,30.67853677,200.78,200.76,0.71]
[1756584734894,30.67853677,200.78,200.73,0.71]
[1756584734895,5.35853677,200.77,200.73,0.71]
[1756584735087,26.0,200.79,200.74,0.71]
[1756584735292,4.67853677,200.76,200.74,0.71]
[1756584735907,4.97913168,200.84,200.76,13.59559401]
[1756584736207,4.97913168,200.84,200.77,0.71]
[1756584736208,4.67853677,200.82,200.77,0.71]
[1756584736415,4.67853677,200.81,200.78,0.71]
[1756584736703,4.67853677,200.8,200.78,0.71]
[1756584736910,4.67853677,200.8,200.77,4.979132]